[Event "*** Titled Tuesday Blitz"]
[Site "Chess.com"]
[Date "2021.04.27"]
[Round "4"]
[White "friesnielsen2302"]
[Black "TheKingOfTheForest"]
[Result "1-0"]
[WhiteElo "2522"]
[BlackElo "2228"]
[TimeControl "180+1"]
[EndTime "10:38:47 PDT"]
[Termination "friesnielsen2302 won by resignation"]

1. e4 {[%clk 0:03:00.9]} 1... e6 {[%clk 0:02:58.7]} 2. b3 {[%clk 0:02:59.6]}
2... d5 {[%clk 0:02:58.6]} 3. e5 {[%clk 0:02:59.6]} 3... c5 {[%clk 0:02:58.4]}
4. c3 {[%clk 0:02:58.6]} 4... Nc6 {[%clk 0:02:58.3]} 5. Nf3 {[%clk 0:02:58.7]}
5... Bd7 {[%clk 0:02:47.9]} 6. Ba3 {[%clk 0:02:56.5]} 6... Rc8 {[%clk
0:02:46.7]} 7. d4 {[%clk 0:02:54.5]} 7... b6 {[%clk 0:02:43.3]} 8. Ba6 {[%clk
0:02:53.5]} 8... Rb8 {[%clk 0:02:41.7]} 9. O-O {[%clk 0:02:53.9]} 9... Qc7
{[%clk 0:02:41.2]} 10. Bd3 {[%clk 0:02:51.3]} 10... Nh6 {[%clk 0:02:37.7]} 11.
Qe2 {[%clk 0:02:42]} 11... cxd4 {[%clk 0:02:20.5]} 12. Bxf8 {[%clk 0:02:39.3]}
12... Rxf8 {[%clk 0:02:18.8]} 13. cxd4 {[%clk 0:02:39.5]} 13... g6 {[%clk
0:02:12.8]} 14. Qd2 {[%clk 0:02:36.6]} 14... Nf5 {[%clk 0:02:09]} 15. Bxf5
{[%clk 0:02:36.4]} 15... gxf5 {[%clk 0:02:08.7]} 16. Nc3 {[%clk 0:02:36.6]}
16... Ne7 {[%clk 0:01:56.2]} 17. Rac1 {[%clk 0:02:35.8]} 17... Qd8 {[%clk
0:01:44.9]} 18. Qh6 {[%clk 0:02:35]} 18... Ng6 {[%clk 0:01:41.3]} 19. g3 {[%clk
0:02:32]} 19... Qe7 {[%clk 0:01:28.3]} 20. Ng5 {[%clk 0:02:26.8]} 20... f4
{[%clk 0:01:19.3]} 21. Nxh7 {[%clk 0:02:16.1]} 21... Rh8 {[%clk 0:01:07.1]} 22.
Qg7 {[%clk 0:02:14.4]} 22... Rc8 {[%clk 0:00:53.9]} 23. Nf6+ {[%clk 0:02:12.2]}
23... Kd8 {[%clk 0:00:49.1]} 24. a4 {[%clk 0:02:06.2]} 24... Qf8 {[%clk
0:00:46]} 25. Qxf8+ {[%clk 0:02:04.5]} 25... Rxf8 {[%clk 0:00:46.9]} 26. Ne2
{[%clk 0:02:02.7]} 26... Ke7 {[%clk 0:00:46.5]} 27. h4 {[%clk 0:01:57.9]} 27...
a6 {[%clk 0:00:36.1]} 28. Nxf4 {[%clk 0:01:54.7]} 28... Nxf4 {[%clk 0:00:35.9]}
29. gxf4 {[%clk 0:01:55]} 29... Rh8 {[%clk 0:00:35.6]} 30. h5 {[%clk 0:01:55]}
30... b5 {[%clk 0:00:34.5]} 31. a5 {[%clk 0:01:49.8]} 31... b4 {[%clk
0:00:34.2]} 32. Kg2 {[%clk 0:01:50.1]} 32... Bb5 {[%clk 0:00:31.6]} 33. Rfe1
{[%clk 0:01:50]} 33... Rc3 {[%clk 0:00:27.7]} 34. Rxc3 {[%clk 0:01:47.4]} 34...
bxc3 {[%clk 0:00:28.6]} 35. Rc1 {[%clk 0:01:47.7]} 35... Rc8 {[%clk 0:00:27.9]}
36. h6 {[%clk 0:01:47.9]} 36... Bd3 {[%clk 0:00:28]} 37. Kf3 {[%clk 0:01:45.9]}
37... c2 {[%clk 0:00:28]} 38. Ke3 {[%clk 0:01:43.8]} 38... Bf5 {[%clk
0:00:28.1]} 39. Kd2 {[%clk 0:01:43.8]} 39... Rb8 {[%clk 0:00:27]} 40. h7 {[%clk
0:01:43.9]} 40... Bxh7 {[%clk 0:00:24.9]} 41. Nxh7 {[%clk 0:01:43.1]} 41... Rxb3
{[%clk 0:00:25.4]} 42. Rxc2 {[%clk 0:01:42.3]} 42... Rf3 {[%clk 0:00:26]} 43.
Rc7+ {[%clk 0:01:40.7]} 43... Kd8 {[%clk 0:00:26.4]} 44. Ra7 {[%clk 0:01:38.9]}
44... Rxf2+ {[%clk 0:00:24.7]} 45. Ke3 {[%clk 0:01:38.6]} 45... Rh2 {[%clk
0:00:24.8]} 46. Ng5 {[%clk 0:01:38.7]} 46... Rh3+ {[%clk 0:00:25.6]} 47. Nf3
{[%clk 0:01:37.4]} 47... Rh1 {[%clk 0:00:22]} 48. Rxa6 {[%clk 0:01:37.2]} 48...
Ra1 {[%clk 0:00:20.7]} 49. Ra7 {[%clk 0:01:37.1]} 49... Ke8 {[%clk 0:00:20.7]}
50. Ng5 {[%clk 0:01:36.2]} 50... Ra3+ {[%clk 0:00:21.6]} 51. Kd2 {[%clk
0:01:35.7]} 51... Ra2+ {[%clk 0:00:22]} 52. Kc3 {[%clk 0:01:35.8]} 52... Ra3+
{[%clk 0:00:22.1]} 53. Kb4 {[%clk 0:01:35.8]} 53... Rd3 {[%clk 0:00:22.1]} 54.
Kc5 {[%clk 0:01:35.4]} 54... Rc3+ {[%clk 0:00:22.2]} 55. Kd6 {[%clk 0:01:35.1]}
55... Rc8 {[%clk 0:00:22.8]} 56. Nxf7 {[%clk 0:01:32.9]} 56... Kf8 {[%clk
0:00:21.7]} 57. Ng5 {[%clk 0:01:29.4]} 57... Rc4 {[%clk 0:00:21.4]} 58. Nxe6+
{[%clk 0:01:28.8]} 58... Kg8 {[%clk 0:00:21.2]} 59. f5 {[%clk 0:01:28.6]} 59...
Rb4 {[%clk 0:00:20.5]} 60. f6 {[%clk 0:01:27.8]} 1-0

[Event "*** Titled Tuesday Blitz"]
[Site "Chess.com"]
[Date "2021.04.27"]
[Round "4"]
[White "kaumandur01"]
[Black "KetiGrant"]
[Result "1-0"]
[WhiteElo "2743"]
[BlackElo "2354"]
[TimeControl "180+1"]
[EndTime "10:38:51 PDT"]
[Termination "kaumandur01 won on time"]

1. Nf3 {[%clk 0:03:00.9]} 1... Nf6 {[%clk 0:02:59.1]} 2. g3 {[%clk 0:02:57.9]}
2... g6 {[%clk 0:02:59.4]} 3. Bg2 {[%clk 0:02:58.8]} 3... Bg7 {[%clk 0:02:59.6]}
4. O-O {[%clk 0:02:59.7]} 4... O-O {[%clk 0:02:59.1]} 5. b3 {[%clk 0:03:00.4]}
5... d6 {[%clk 0:02:57.4]} 6. Bb2 {[%clk 0:03:00.7]} 6... e5 {[%clk 0:02:57.8]}
7. c4 {[%clk 0:02:59]} 7... c5 {[%clk 0:02:54.9]} 8. d3 {[%clk 0:02:57.5]} 8...
Nc6 {[%clk 0:02:54.8]} 9. Ne1 {[%clk 0:02:56.6]} 9... Nh5 {[%clk 0:02:51.1]} 10.
Nc3 {[%clk 0:02:56.2]} 10... f5 {[%clk 0:02:50.2]} 11. Nd5 {[%clk 0:02:53.3]}
11... f4 {[%clk 0:02:47.8]} 12. a3 {[%clk 0:02:46.4]} 12... Be6 {[%clk
0:02:43.6]} 13. b4 {[%clk 0:02:46.2]} 13... Qd7 {[%clk 0:02:40.4]} 14. Rb1
{[%clk 0:02:43.2]} 14... Bh3 {[%clk 0:02:31.9]} 15. bxc5 {[%clk 0:02:20.6]}
15... dxc5 {[%clk 0:02:30.5]} 16. Nf3 {[%clk 0:02:10.3]} 16... Bxg2 {[%clk
0:02:18.9]} 17. Kxg2 {[%clk 0:02:11.2]} 17... b6 {[%clk 0:02:18.2]} 18. Nd2
{[%clk 0:01:59.7]} 18... Ne7 {[%clk 0:01:20.2]} 19. Nxe7+ {[%clk 0:01:53.9]}
19... Qxe7 {[%clk 0:01:21.1]} 20. Ne4 {[%clk 0:01:54]} 20... Rad8 {[%clk
0:01:17.1]} 21. a4 {[%clk 0:01:42.8]} 21... Nf6 {[%clk 0:01:14.2]} 22. Qc2
{[%clk 0:01:36.2]} 22... Nxe4 {[%clk 0:00:40]} 23. dxe4 {[%clk 0:01:37.1]} 23...
f3+ {[%clk 0:00:27.4]} 24. exf3 {[%clk 0:01:37]} 24... Qf7 {[%clk 0:00:27.8]}
25. Qb3 {[%clk 0:01:34.1]} 25... Rd2 {[%clk 0:00:25.8]} 26. Rbd1 {[%clk
0:01:29.9]} 26... Rfd8 {[%clk 0:00:25.6]} 27. Rxd2 {[%clk 0:01:14.2]} 27... Rxd2
{[%clk 0:00:26.5]} 28. Rd1 {[%clk 0:01:14.8]} 28... Qd7 {[%clk 0:00:17]} 29.
Rxd2 {[%clk 0:01:14]} 29... Qxd2 {[%clk 0:00:17.9]} 30. Qc3 {[%clk 0:01:12.7]}
30... Qe2 {[%clk 0:00:15.4]} 31. Bc1 {[%clk 0:01:07.5]} 31... h5 {[%clk
0:00:11.5]} 32. h4 {[%clk 0:01:07.1]} 32... Qd1 {[%clk 0:00:06.6]} 33. Be3
{[%clk 0:01:06.8]} 33... Qxa4 {[%clk 0:00:05.8]} 34. Qd3 {[%clk 0:01:07]} 34...
Qe8 {[%clk 0:00:04.9]} 35. f4 {[%clk 0:01:01.8]} 35... Kh7 {[%clk 0:00:05.8]}
36. fxe5 {[%clk 0:00:59.4]} 36... Qxe5 {[%clk 0:00:04.9]} 37. f4 {[%clk
0:00:59.8]} 37... Qb2+ {[%clk 0:00:04]} 38. Kf3 {[%clk 0:01:00.3]} 38... a5
{[%clk 0:00:04.4]} 39. e5 {[%clk 0:00:58.6]} 39... a4 {[%clk 0:00:04.5]} 40. f5
{[%clk 0:00:59.1]} 40... Qxe5 {[%clk 0:00:02.4]} 41. fxg6+ {[%clk 0:00:59.3]}
1-0

[Event "*** Titled Tuesday Blitz"]
[Site "Chess.com"]
[Date "2021.04.27"]
[Round "4"]
[White "McCarthyStone"]
[Black "ajedrez1101"]
[Result "1-0"]
[WhiteElo "2350"]
[BlackElo "2155"]
[TimeControl "180+1"]
[EndTime "10:38:51 PDT"]
[Termination "McCarthyStone won by checkmate"]

1. e4 {[%clk 0:03:00.9]} 1... b6 {[%clk 0:03:00.2]} 2. c4 {[%clk 0:02:49.3]}
2... Bb7 {[%clk 0:02:58.5]} 3. Nc3 {[%clk 0:02:49.7]} 3... e5 {[%clk 0:02:58.3]}
4. g3 {[%clk 0:02:48]} 4... Bc5 {[%clk 0:02:53.9]} 5. Bg2 {[%clk 0:02:45.3]}
5... d6 {[%clk 0:02:47.9]} 6. Nge2 {[%clk 0:02:44.6]} 6... Nc6 {[%clk
0:02:47.2]} 7. a3 {[%clk 0:02:34.8]} 7... a5 {[%clk 0:02:46.7]} 8. Na4 {[%clk
0:02:31.4]} 8... Nge7 {[%clk 0:02:42.7]} 9. d3 {[%clk 0:02:31.5]} 9... O-O
{[%clk 0:02:41.9]} 10. O-O {[%clk 0:02:29.5]} 10... f5 {[%clk 0:02:41.5]} 11.
Nxc5 {[%clk 0:02:27.4]} 11... bxc5 {[%clk 0:02:40.6]} 12. exf5 {[%clk
0:02:27.4]} 12... Nxf5 {[%clk 0:02:40.4]} 13. Nc3 {[%clk 0:02:18.3]} 13... Rb8
{[%clk 0:02:26.1]} 14. Nd5 {[%clk 0:02:15.9]} 14... Nfd4 {[%clk 0:02:06.3]} 15.
f4 {[%clk 0:02:01.6]} 15... Bc8 {[%clk 0:02:03]} 16. fxe5 {[%clk 0:01:56.9]}
16... Nxe5 {[%clk 0:02:02.6]} 17. Rxf8+ {[%clk 0:01:40.4]} 17... Kxf8 {[%clk
0:01:52.4]} 18. Bf4 {[%clk 0:01:40.4]} 18... Bg4 {[%clk 0:01:39.5]} 19. Qf1
{[%clk 0:01:35.9]} 19... Ne2+ {[%clk 0:01:20.7]} 20. Kh1 {[%clk 0:01:34.6]}
20... Nxf4 {[%clk 0:01:20.4]} 21. Qxf4+ {[%clk 0:01:35.5]} 21... Kg8 {[%clk
0:01:20.5]} 22. Rf1 {[%clk 0:01:29]} 22... Be2 {[%clk 0:01:08.3]} 23. Rf2 {[%clk
0:01:14.5]} 23... Nxd3 {[%clk 0:01:06.5]} 24. Qf7+ {[%clk 0:01:13.8]} 24... Kh8
{[%clk 0:01:06.4]} 25. Rxe2 {[%clk 0:01:13.6]} 25... Ne5 {[%clk 0:01:05.1]} 26.
Qxc7 {[%clk 0:01:10.4]} 26... Qf8 {[%clk 0:01:01.3]} 27. h3 {[%clk 0:01:00.3]}
27... Nxc4 {[%clk 0:00:56.5]} 28. Rf2 {[%clk 0:00:46.3]} 28... Qg8 {[%clk
0:00:51.7]} 29. Ne7 {[%clk 0:00:43]} 29... Qe8 {[%clk 0:00:38.4]} 30. Bc6 {[%clk
0:00:35.2]} 30... Qd8 {[%clk 0:00:38.3]} 31. Qxd8+ {[%clk 0:00:35]} 31... Rxd8
{[%clk 0:00:38.3]} 32. Bd5 {[%clk 0:00:35.4]} 32... Ne3 {[%clk 0:00:37.3]} 33.
Rf3 {[%clk 0:00:22.2]} 33... Nc2 {[%clk 0:00:28.5]} 34. Rf4 {[%clk 0:00:17.1]}
34... Nd4 {[%clk 0:00:26.6]} 35. Ng6+ {[%clk 0:00:16.9]} 35... hxg6 {[%clk
0:00:25.9]} 36. Rh4# {[%clk 0:00:17.8]} 1-0

[Event "*** Titled Tuesday Blitz"]
[Site "Chess.com"]
[Date "2021.04.27"]
[Round "4"]
[White "Mikhail_Golubev"]
[Black "WPWPWP-2015"]
[Result "0-1"]
[WhiteElo "2562"]
[BlackElo "2422"]
[TimeControl "180+1"]
[EndTime "10:38:55 PDT"]
[Termination "WPWPWP-2015 won on time"]

1. e4 {[%clk 0:03:00.9]} 1... e5 {[%clk 0:02:44]} 2. Nf3 {[%clk 0:02:59.7]} 2...
Nc6 {[%clk 0:02:43.2]} 3. Bb5 {[%clk 0:02:59.3]} 3... Nf6 {[%clk 0:02:43.3]} 4.
O-O {[%clk 0:02:52.7]} 4... Nxe4 {[%clk 0:02:42.7]} 5. Re1 {[%clk 0:02:46.8]}
5... Nd6 {[%clk 0:02:42.4]} 6. Bf1 {[%clk 0:02:35.5]} 6... Be7 {[%clk
0:02:40.6]} 7. Nc3 {[%clk 0:02:34.9]} 7... O-O {[%clk 0:02:40.2]} 8. d4 {[%clk
0:02:32.5]} 8... exd4 {[%clk 0:02:36.8]} 9. Nd5 {[%clk 0:02:24.6]} 9... Re8
{[%clk 0:02:06.1]} 10. Qd3 {[%clk 0:02:20]} 10... Bf8 {[%clk 0:01:35.1]} 11. Ng5
{[%clk 0:00:52.2]} 11... g6 {[%clk 0:01:32.4]} 12. Rxe8 {[%clk 0:00:35.1]} 12...
Nxe8 {[%clk 0:01:23.1]} 13. Qf3 {[%clk 0:00:27.2]} 13... Ne5 {[%clk 0:01:08.3]}
14. Qg3 {[%clk 0:00:17.4]} 14... d6 {[%clk 0:00:58.2]} 15. f4 {[%clk 0:00:15.2]}
15... Ng4 {[%clk 0:00:53.6]} 16. h3 {[%clk 0:00:13.1]} 16... Ngf6 {[%clk
0:00:52.4]} 17. Bc4 {[%clk 0:00:13.1]} 17... Be6 {[%clk 0:00:41.8]} 18. Nxf6+
{[%clk 0:00:11.9]} 18... Qxf6 {[%clk 0:00:41.4]} 19. Nxe6 {[%clk 0:00:11.1]}
19... fxe6 {[%clk 0:00:41.6]} 20. Bd2 {[%clk 0:00:11.9]} 20... d5 {[%clk
0:00:39.7]} 21. Bd3 {[%clk 0:00:11.9]} 21... Nd6 {[%clk 0:00:38.8]} 22. Re1
{[%clk 0:00:10.5]} 22... c5 {[%clk 0:00:36.3]} 23. Qg4 {[%clk 0:00:06.4]} 23...
Re8 {[%clk 0:00:30.2]} 24. b3 {[%clk 0:00:03.5]} 24... b5 {[%clk 0:00:30.1]} 25.
Bf1 {[%clk 0:00:02.9]} 25... c4 {[%clk 0:00:27.3]} 26. a4 {[%clk 0:00:02.9]}
26... a6 {[%clk 0:00:27]} 27. axb5 {[%clk 0:00:02.7]} 27... axb5 {[%clk
0:00:27.3]} 28. bxc4 {[%clk 0:00:01.7]} 28... bxc4 {[%clk 0:00:27.6]} 29. Ra1
{[%clk 0:00:02.3]} 29... Ne4 {[%clk 0:00:27.2]} 30. Be1 {[%clk 0:00:02.5]} 30...
Qf5 {[%clk 0:00:27.1]} 0-1

[Event "*** Titled Tuesday Blitz"]
[Site "Chess.com"]
[Date "2021.04.27"]
[Round "4"]
[White "gmcorrales"]
[Black "PotapovaM"]
[Result "1-0"]
[WhiteElo "2865"]
[BlackElo "2566"]
[TimeControl "180+1"]
[EndTime "10:38:56 PDT"]
[Termination "gmcorrales won on time"]

1. e4 {[%clk 0:03:00.9]} 1... c5 {[%clk 0:02:58.2]} 2. Nf3 {[%clk 0:03:01]} 2...
d6 {[%clk 0:02:58.8]} 3. d4 {[%clk 0:03:01.4]} 3... cxd4 {[%clk 0:02:59.7]} 4.
Nxd4 {[%clk 0:03:02.3]} 4... Nf6 {[%clk 0:03:00.3]} 5. Nc3 {[%clk 0:03:02.8]}
5... a6 {[%clk 0:03:01]} 6. Be3 {[%clk 0:03:03.3]} 6... e5 {[%clk 0:03:01.6]} 7.
Nb3 {[%clk 0:03:03.4]} 7... Be6 {[%clk 0:03:02.3]} 8. f3 {[%clk 0:03:03.8]} 8...
Be7 {[%clk 0:03:03]} 9. Qd2 {[%clk 0:03:04.3]} 9... O-O {[%clk 0:03:03.6]} 10.
O-O-O {[%clk 0:03:04.9]} 10... a5 {[%clk 0:02:55.6]} 11. a4 {[%clk 0:03:04.4]}
11... Na6 {[%clk 0:02:55.6]} 12. g4 {[%clk 0:03:03.3]} 12... Nb4 {[%clk
0:02:54.5]} 13. g5 {[%clk 0:03:03.9]} 13... Nh5 {[%clk 0:02:54.2]} 14. Kb1
{[%clk 0:03:03.8]} 14... Rc8 {[%clk 0:02:51.7]} 15. Bb5 {[%clk 0:03:02.8]} 15...
Kh8 {[%clk 0:02:50.2]} 16. h4 {[%clk 0:02:49.1]} 16... Qc7 {[%clk 0:02:47.6]}
17. Rhg1 {[%clk 0:02:44.4]} 17... Rfd8 {[%clk 0:02:27]} 18. Qf2 {[%clk 0:02:42]}
18... Nf4 {[%clk 0:01:44.8]} 19. Bb6 {[%clk 0:02:32.1]} 19... Qb8 {[%clk
0:01:44.4]} 20. Rge1 {[%clk 0:02:28.8]} 20... Rf8 {[%clk 0:01:20.6]} 21. Bxa5
{[%clk 0:02:10.5]} 21... d5 {[%clk 0:01:11.2]} 22. exd5 {[%clk 0:02:08.1]} 22...
Nbxd5 {[%clk 0:00:58.9]} 23. Nxd5 {[%clk 0:02:07.5]} 23... Bxd5 {[%clk
0:00:52.9]} 24. Bc3 {[%clk 0:02:03.9]} 24... Rxc3 {[%clk 0:00:45.3]} 25. bxc3
{[%clk 0:02:03.8]} 25... Qc7 {[%clk 0:00:45.8]} 26. c4 {[%clk 0:01:53.5]} 26...
Bxc4 {[%clk 0:00:42.2]} 27. Bxc4 {[%clk 0:01:54.4]} 27... Qxc4 {[%clk
0:00:42.8]} 28. Rxe5 {[%clk 0:01:54.7]} 28... Ba3 {[%clk 0:00:35.2]} 29. Re4
{[%clk 0:01:53.3]} 29... Qc7 {[%clk 0:00:35]} 30. Qd4 {[%clk 0:01:50.4]} 30...
Ne6 {[%clk 0:00:33.6]} 31. Qe5 {[%clk 0:01:49.5]} 31... Qc6 {[%clk 0:00:24.5]}
32. Nd4 {[%clk 0:01:26.7]} 32... Qd7 {[%clk 0:00:12.5]} 33. Rd3 {[%clk
0:01:24.3]} 33... Qe7 {[%clk 0:00:02.6]} 34. Nxe6 {[%clk 0:01:22.2]} 34... fxe6
{[%clk 0:00:02.9]} 35. Ka2 {[%clk 0:01:15.2]} 35... Bc5 {[%clk 0:00:01.5]} 36.
Qxe6 {[%clk 0:01:10.2]} 36... Qc7 {[%clk 0:00:02.1]} 37. Rc3 {[%clk 0:01:04.7]}
37... Qa5 {[%clk 0:00:02]} 38. Qe5 {[%clk 0:01:02.7]} 38... b6 {[%clk
0:00:02.5]} 39. h5 {[%clk 0:01:02.5]} 39... Ra8 {[%clk 0:00:01.4]} 40. h6 {[%clk
0:01:02.1]} 40... Qa7 {[%clk 0:00:02]} 41. Rd3 {[%clk 0:00:55.9]} 41... Rg8
{[%clk 0:00:01.3]} 42. Rh4 {[%clk 0:00:53.5]} 1-0

[Event "*** Titled Tuesday Blitz"]
[Site "Chess.com"]
[Date "2021.04.27"]
[Round "4"]
[White "alejogarcia1999"]
[Black "Srisshhhtea"]
[Result "1-0"]
[WhiteElo "2483"]
[BlackElo "2335"]
[TimeControl "180+1"]
[EndTime "10:38:57 PDT"]
[Termination "alejogarcia1999 won on time"]

1. d4 {[%clk 0:03:00.9]} 1... d5 {[%clk 0:02:59.8]} 2. c4 {[%clk 0:03:00.8]}
2... e6 {[%clk 0:02:59.4]} 3. Nc3 {[%clk 0:02:59.8]} 3... Be7 {[%clk 0:02:59.2]}
4. Nf3 {[%clk 0:02:59.8]} 4... Nf6 {[%clk 0:02:59]} 5. Bf4 {[%clk 0:02:59.9]}
5... O-O {[%clk 0:02:56.3]} 6. e3 {[%clk 0:03:00.3]} 6... b6 {[%clk 0:02:55]} 7.
h3 {[%clk 0:02:56.2]} 7... Bb7 {[%clk 0:02:53.3]} 8. cxd5 {[%clk 0:02:56.6]}
8... Nxd5 {[%clk 0:02:52.3]} 9. Nxd5 {[%clk 0:02:56.5]} 9... Bxd5 {[%clk
0:02:52.4]} 10. Bd3 {[%clk 0:02:56.4]} 10... c5 {[%clk 0:02:48.7]} 11. O-O
{[%clk 0:02:55.4]} 11... Nc6 {[%clk 0:02:45.3]} 12. e4 {[%clk 0:02:53.8]} 12...
cxd4 {[%clk 0:02:29.9]} 13. exd5 {[%clk 0:02:53.2]} 13... Qxd5 {[%clk
0:02:30.4]} 14. Rc1 {[%clk 0:02:50.2]} 14... Bf6 {[%clk 0:02:22.7]} 15. Re1
{[%clk 0:02:43.4]} 15... Qd7 {[%clk 0:01:50.4]} 16. Be4 {[%clk 0:02:42.1]} 16...
Rac8 {[%clk 0:01:48.2]} 17. Rxc6 {[%clk 0:02:39.4]} 17... Rxc6 {[%clk
0:01:49.1]} 18. Bxc6 {[%clk 0:02:39.7]} 18... Qxc6 {[%clk 0:01:50]} 19. Nxd4
{[%clk 0:02:39.5]} 19... Qc4 {[%clk 0:01:46.5]} 20. Be3 {[%clk 0:02:29.3]} 20...
Rd8 {[%clk 0:01:43.1]} 21. Qb3 {[%clk 0:02:27.4]} 21... Rxd4 {[%clk 0:01:34.4]}
22. Bxd4 {[%clk 0:02:27.2]} 22... Qxb3 {[%clk 0:01:32.9]} 23. axb3 {[%clk
0:02:25.8]} 23... Bxd4 {[%clk 0:01:33.1]} 24. Rd1 {[%clk 0:02:25.2]} 24... e5
{[%clk 0:01:31.8]} 25. Rc1 {[%clk 0:02:20.7]} 25... g6 {[%clk 0:01:24.8]} 26. b4
{[%clk 0:02:15.9]} 26... Bxb2 {[%clk 0:01:16.8]} 27. Rc8+ {[%clk 0:02:15.3]}
27... Kg7 {[%clk 0:01:16.1]} 28. b5 {[%clk 0:02:16.2]} 28... Bd4 {[%clk
0:01:12.8]} 29. Rc7 {[%clk 0:02:14.8]} 29... Kf6 {[%clk 0:01:12]} 30. Rxa7
{[%clk 0:02:14.3]} 30... Ke6 {[%clk 0:01:12]} 31. Kf1 {[%clk 0:02:14]} 31... h5
{[%clk 0:01:09]} 32. Ke2 {[%clk 0:02:13.7]} 32... f6 {[%clk 0:01:07.6]} 33. f3
{[%clk 0:02:14.1]} 33... Kd5 {[%clk 0:00:55.8]} 34. Rc7 {[%clk 0:02:11.9]} 34...
Ke6 {[%clk 0:00:23]} 35. Rc6+ {[%clk 0:02:10.4]} 35... Kf5 {[%clk 0:00:18.7]}
36. Kd3 {[%clk 0:01:56.6]} 36... h4 {[%clk 0:00:18.1]} 37. Rd6 {[%clk
0:01:53.5]} 37... Bc5 {[%clk 0:00:17.7]} 38. Rc6 {[%clk 0:01:52.8]} 38... Bd4
{[%clk 0:00:17.6]} 39. Rc4 {[%clk 0:01:50]} 39... g5 {[%clk 0:00:16.3]} 40. Rc6
{[%clk 0:01:42.9]} 40... Kg6 {[%clk 0:00:14.1]} 41. Ke4 {[%clk 0:01:42.6]} 41...
Bf2 {[%clk 0:00:11.9]} 42. Rc8 {[%clk 0:01:39.9]} 42... Bd4 {[%clk 0:00:11.6]}
43. Rd8 {[%clk 0:01:37.2]} 43... f5+ {[%clk 0:00:11.1]} 44. Kd5 {[%clk
0:01:36.2]} 44... Kf6 {[%clk 0:00:09.2]} 45. Rf8+ {[%clk 0:01:35.1]} 45... Kg6
{[%clk 0:00:09.1]} 46. Ke6 {[%clk 0:01:34.9]} 46... e4 {[%clk 0:00:06.8]} 47.
fxe4 {[%clk 0:01:34.6]} 47... fxe4 {[%clk 0:00:06.3]} 48. Kd5 {[%clk 0:01:34.7]}
48... Bc5 {[%clk 0:00:05.7]} 49. Re8 {[%clk 0:01:31]} 49... e3 {[%clk
0:00:05.3]} 50. Ke4 {[%clk 0:01:30.8]} 50... Kf7 {[%clk 0:00:03.1]} 51. Re5
{[%clk 0:01:30.5]} 51... Kf6 {[%clk 0:00:03.2]} 52. Rf5+ {[%clk 0:01:29]} 52...
Kg6 {[%clk 0:00:02.4]} 53. Rf1 {[%clk 0:01:27.5]} 1-0

[Event "*** Titled Tuesday Blitz"]
[Site "Chess.com"]
[Date "2021.04.27"]
[Round "4"]
[White "andrewtnb"]
[Black "andriipalchuk"]
[Result "1-0"]
[WhiteElo "2262"]
[BlackElo "2584"]
[TimeControl "180+1"]
[EndTime "10:39:00 PDT"]
[Termination "andrewtnb won by resignation"]

1. d4 {[%clk 0:03:00.9]} 1... d5 {[%clk 0:02:58.5]} 2. c4 {[%clk 0:03:00.4]}
2... c6 {[%clk 0:02:58.2]} 3. cxd5 {[%clk 0:02:58.6]} 3... cxd5 {[%clk
0:02:57.9]} 4. Nc3 {[%clk 0:02:59.2]} 4... Nf6 {[%clk 0:02:58.2]} 5. Nf3 {[%clk
0:02:58.4]} 5... Nc6 {[%clk 0:02:58.6]} 6. Bf4 {[%clk 0:02:57.4]} 6... a6 {[%clk
0:02:58.1]} 7. Rc1 {[%clk 0:02:54]} 7... Bf5 {[%clk 0:02:57.8]} 8. e3 {[%clk
0:02:53.5]} 8... e6 {[%clk 0:02:57.5]} 9. Bd3 {[%clk 0:02:52.8]} 9... Bxd3
{[%clk 0:02:56.6]} 10. Qxd3 {[%clk 0:02:53.7]} 10... Bd6 {[%clk 0:02:57.2]} 11.
Bxd6 {[%clk 0:02:53.5]} 11... Qxd6 {[%clk 0:02:58.1]} 12. O-O {[%clk 0:02:53.1]}
12... O-O {[%clk 0:02:58.6]} 13. Na4 {[%clk 0:02:48.8]} 13... Nd7 {[%clk
0:02:58.2]} 14. Nc5 {[%clk 0:02:38.6]} 14... Nxc5 {[%clk 0:02:57]} 15. Rxc5
{[%clk 0:02:39.5]} 15... b6 {[%clk 0:02:32.2]} 16. Rc3 {[%clk 0:02:27]} 16...
Nb4 {[%clk 0:02:27.9]} 17. Qb1 {[%clk 0:02:20.4]} 17... Rfc8 {[%clk 0:02:26.3]}
18. Rfc1 {[%clk 0:02:17.2]} 18... Rxc3 {[%clk 0:01:36.6]} 19. bxc3 {[%clk
0:02:04.2]} 19... Nc6 {[%clk 0:01:35.3]} 20. Qxb6 {[%clk 0:02:03]} 20... Qa3
{[%clk 0:01:32]} 21. Rb1 {[%clk 0:01:56.9]} 21... Qxa2 {[%clk 0:01:08]} 22. Ne5
{[%clk 0:01:38.6]} 22... Ne7 {[%clk 0:00:45.7]} 23. h3 {[%clk 0:01:16.4]} 23...
h6 {[%clk 0:00:31.1]} 24. Qb7 {[%clk 0:00:58.3]} 24... Re8 {[%clk 0:00:29.2]}
25. Rb6 {[%clk 0:00:54.2]} 25... Qa1+ {[%clk 0:00:22.4]} 26. Kh2 {[%clk
0:00:53.7]} 26... Qxc3 {[%clk 0:00:22.8]} 27. Qd7 {[%clk 0:00:43.4]} 27... Qc8
{[%clk 0:00:03]} 28. Qa7 {[%clk 0:00:38.1]} 28... Qa8 {[%clk 0:00:02.3]} 29. Qd7
{[%clk 0:00:32.7]} 29... Qc8 {[%clk 0:00:01.6]} 30. Rxa6 {[%clk 0:00:26.1]}
30... Qa8 {[%clk 0:00:02.5]} 31. Rxa8 {[%clk 0:00:25]} 1-0